fUST/lending_fUST_20241022
["ID","MTS","AMOUNT","RATE_DAILY","PERIOD"]
[340651784,1729597847407,-502.85536475,0.00016438,2]
[340651785,1729597847420,-694.58,0.00016438,2]
[340651786,1729597847434,-375.68307044,0.00016438,2]
[340651787,1729597847914,-125.83974688,0.00016438,2]
[340651788,1729597847928,-500.0,0.00016438,2]
[340651789,1729597847941,-889.79,0.00016438,2]
[340651790,1729597847953,-501.73067683,0.00016438,2]
[340651791,1729597847965,-500.0,0.00016438,2]
[340651792,1729597847977,-500.39412007,0.00016438,2]
[340651793,1729597847989,-500.0,0.00016438,2]
[340651794,1729597848001,-500.0,0.00016438,2]
[340651795,1729597848013,-500.0,0.00016438,2]
[340651796,1729597848026,-500.0,0.00016438,2]
[340651797,1729597848037,-501.29440198,0.00016438,2]
[340651798,1729597848049,-500.0,0.00016438,2]
[340651799,1729597848061,-500.0,0.00016438,2]
[340651800,1729597848074,-502.05485516,0.00016438,2]
[340651801,1729597848087,-509.36394963,0.00016438,2]
[340651802,1729597848098,-640.23,0.00016438,2]
[340651803,1729597848110,-500.0,0.00016438,2]
[340651804,1729597848122,-500.74132313,0.00016438,2]
[340651805,1729597848134,-500.0,0.00016438,2]
[340651806,1729597848145,-501.61949091,0.00016438,2]
[340651807,1729597848156,-507.21638181,0.00016438,2]
[340651808,1729597848168,-501.77308922,0.00016438,2]
[340651809,1729597848179,-500.0,0.00016438,2]
[340651810,1729597848191,-500.0,0.00016438,2]
[340651811,1729597848201,-502.96130274,0.00016438,2]
[340651812,1729597848212,-501.10629901,0.00016438,2]
[340651813,1729597848223,-500.0,0.00016438,2]
[340651814,1729597848235,-500.0,0.00016438,2]
[340651815,1729597848246,-506.03712513,0.00016438,2]
[340651816,1729597848258,-500.0,0.00016438,2]
[340651817,1729597848268,-500.0,0.00016438,2]
[340651818,1729597848280,-500.0,0.00016438,2]
[340651819,1729597848291,-500.0,0.00016438,2]
[340651820,1729597848302,-502.48376311,0.00016438,2]
[340651821,1729597848313,-500.0,0.00016438,2]
[340651822,1729597848324,-505.94903625,0.00016438,2]
[340651823,1729597848335,-501.9415093,0.00016438,2]
[340651824,1729597848346,-564.03,0.00016438,2]
[340651825,1729597848357,-500.90067051,0.00016438,2]
[340651826,1729597848369,-502.49107093,0.00016438,2]
[340651827,1729597848382,-503.05166533,0.00016438,2]
[340651828,1729597848392,-500.0,0.00016438,2]
[340651829,1729597848403,-849.84,0.00016438,2]
[340651830,1729597848414,-503.87218728,0.00016438,2]
[340651831,1729597848424,-505.27463537,0.00016438,2]
[340651832,1729597848435,-500.0,0.00016438,2]
[340651833,1729597848446,-607.16,0.00016438,2]
[340651834,1729597848456,-508.70953508,0.00016438,2]
[340651835,1729597848469,-500.0,0.00016438,2]
[340651836,1729597848484,-500.0,0.00016438,2]
[340651837,1729597848496,-500.0,0.00016438,2]
[340651838,1729597848509,-500.0,0.00016438,2]
[340651839,1729597848520,-500.0,0.00016438,2]
[340651840,1729597848533,-501.04603239,0.00016438,2]
[340651841,1729597848544,-500.0,0.00016438,2]
[340651842,1729597848865,-500.0,0.00016438,2]
[340651843,1729597848887,-505.44759823,0.00016438,2]
[340651844,1729597848899,-501.11646806,0.00016438,2]
[340651845,1729597848909,-503.79182433,0.00016438,2]
[340651846,1729597848919,-500.0,0.00016438,2]
[340651847,1729597848930,-924.6,0.00016438,2]
[340651848,1729597848943,-509.75101723,0.00016438,2]
[340651849,1729597848953,-503.57892743,0.00016438,2]
[340651850,1729597848963,-500.0,0.00016438,2]
[340651851,1729597848974,-503.39470722,0.00016438,2]
[340651852,1729597848984,-502.51891853,0.00016438,2]
[340651853,1729597848993,-500.0,0.00016438,2]
[340651854,1729597849003,-501.96890681,0.00016438,2]
[340651855,1729597849015,-567.85494646,0.00016438,2]
[340651856,1729597849024,-502.66594284,0.00016438,2]
[340651857,1729597849034,-500.0,0.00016438,2]
[340651858,1729597849044,-500.0,0.00016438,2]
[340651859,1729597849053,-500.0,0.00016438,2]
[340651860,1729597849063,-509.72,0.00016438,2]
[340651861,1729597849072,-500.0,0.00016438,2]
[340651862,1729597849082,-638.01,0.00016438,2]
[340651863,1729597849091,-510.4572275,0.00016438,2]
[340651864,1729597849100,-955.39,0.00016438,2]
[340651865,1729597849110,-500.0,0.00016438,2]
[340651866,1729597849120,-599.7,0.00016438,2]
[340651867,1729597849129,-501.62862238,0.00016438,2]
[340651868,1729597849139,-511.04975835,0.00016438,2]
[340651869,1729597849148,-668.78,0.00016438,2]
[340651870,1729597849157,-500.0,0.00016438,2]
[340651871,1729597849167,-155.77148998,0.00016438,2]
[340651872,1729597849178,-500.0,0.00016438,2]
[340651873,1729597849187,-508.42730088,0.00016438,2]
[340651874,1729597849197,-771.39,0.00016438,2]
[340651875,1729597849207,-500.0,0.00016438,2]
[340651876,1729597849217,-500.0,0.00016438,2]
[340651877,1729597849227,-500.0,0.00016438,2]
[340651878,1729597849236,-502.9688389,0.00016438,2]
[340651879,1729597849246,-504.17294063,0.00016438,2]
[340651880,1729597849256,-503.95285105,0.00016438,2]
[340651881,1729597849265,-501.85939675,0.00016438,2]
[340651882,1729597849276,-468.89473178,0.00016438,2]
[340651883,1729597849286,-500.0,0.00016438,2]
[340651884,1729597849295,-1066.54,0.00016438,2]
[340651885,1729597849305,-503.52409603,0.00016438,2]
[340651886,1729597849315,-85.51483194,0.00016438,2]
[340651887,1729597849334,-414.48516806,0.00016438,2]
[340651888,1729597849343,-510.22830872,0.00016438,2]
[340651889,1729597849354,-501.94248644,0.00016438,2]
[340651890,1729597849363,-508.44556554,0.00016438,2]
[340651891,1729597849373,-505.53396244,0.00016438,2]
[340651892,1729597849383,-500.0,0.00016438,2]
[340651893,1729597849393,-542.7,0.00016438,2]
[340651894,1729597849402,-529.58071608,0.00016438,2]
[340651895,1729597849411,-500.0,0.00016438,2]
[340651896,1729597849420,-500.0,0.00016438,2]
[340651897,1729597849430,-508.61302928,0.00016438,2]
[340651898,1729597849439,-560.10591837,0.00016438,2]
[340651899,1729597849449,-500.96910638,0.00016438,2]
[340651900,1729597849459,-503.06122098,0.00016438,2]
[340651901,1729597849469,-500.0,0.00016438,2]
[340651902,1729597849479,-500.0,0.00016438,2]
[340651903,1729597849488,-558.86,0.00016438,2]
[340651904,1729597849498,-502.04301546,0.00016438,2]
[340651905,1729597849508,-500.0,0.00016438,2]
[340651906,1729597849517,-500.0,0.00016438,2]
[340651907,1729597849528,-500.0,0.00016438,2]
[340651908,1729597849539,-500.0,0.00016438,2]
[340651909,1729597849549,-518.44747186,0.00016438,2]
[340651910,1729597849559,-612.30106944,0.00016438,2]
[340651911,1729597849568,-503.76961971,0.00016438,2]
[340651912,1729597849578,-507.51568067,0.00016438,2]
[340651913,1729597849587,-500.0,0.00016438,2]
[340651914,1729597849597,-500.64285111,0.00016438,2]
[340651915,1729597849607,-523.1,0.00016438,2]
[340651916,1729597849616,-502.2765648,0.00016438,2]
[340651917,1729597849626,-533.78152567,0.00016438,2]
[340651918,1729597849636,-587.09611822,0.00016438,2]
[340651919,1729597849645,-500.0,0.00016438,2]
[340651920,1729597849655,-504.55398609,0.00016438,2]
[340651921,1729597849665,-500.98949854,0.00016438,2]
[340651922,1729597849675,-500.0,0.00016438,2]
[340651923,1729597849684,-500.0,0.00016438,2]
[340651924,1729597849694,-773.25,0.00016438,2]
[340651925,1729597849704,-501.84503285,0.00016438,2]
[340651926,1729597849713,-500.0,0.00016438,2]
[340651927,1729597849722,-501.03195701,0.00016438,2]
[340651928,1729597849732,-502.27180082,0.00016438,2]
[340651929,1729597849743,-514.02320675,0.00016438,2]
[340651930,1729597849752,-502.33089724,0.00016438,2]
[340651931,1729597849761,-501.28919505,0.00016438,2]
[340651932,1729597849770,-500.0,0.00016438,2]
[340651933,1729597849781,-500.0,0.00016438,2]
[340651934,1729597849790,-515.02556951,0.00016438,2]
[340651935,1729597849799,-500.0,0.00016438,2]
[340651936,1729597849809,-506.05048585,0.00016438,2]
[340651937,1729597849818,-505.71770607,0.00016438,2]
[340651938,1729597849827,-502.33292556,0.00016438,2]
[340651939,1729597849837,-500.0,0.00016438,2]
[340651940,1729597849846,-505.03565979,0.00016438,2]
[340651941,1729597849855,-504.88986568,0.00016438,2]
[340651942,1729597849864,-500.93876499,0.00016438,2]
[340651943,1729597849873,-543.50183098,0.00016438,2]
[340651944,1729597849882,-501.21024464,0.00016438,2]
[340651945,1729597849892,-500.0,0.00016438,2]
[340651946,1729597849902,-500.0,0.00016438,2]
[340651947,1729597849911,-501.71534322,0.00016438,2]
[340651948,1729597849921,-500.0,0.00016438,2]
[340651949,1729597849930,-1001.62772605,0.00016438,2]
[340651950,1729597849940,-500.0,0.00016438,2]
[340651951,1729597849952,-503.99659941,0.00016438,2]
[340651952,1729597849962,-504.12658946,0.00016438,2]
[340651953,1729597849973,-500.0,0.00016438,2]
[340651954,1729597849983,-500.23928535,0.00016438,2]
[340651955,1729597849993,-505.98350586,0.00016438,2]
[340651956,1729597850002,-501.91288018,0.00016438,2]
[340651957,1729597850012,-502.69972289,0.00016438,2]
[340651958,1729597850021,-506.1695937,0.00016438,2]
[340651959,1729597850032,-922.77,0.00016438,2]
[340651960,1729597850042,-503.623404,0.00016438,2]
[340651961,1729597850051,-502.79152994,0.00016438,2]
[340651962,1729597850061,-414.51714391,0.00016438,2]
[340651963,1729597850070,-502.17883596,0.00016438,2]
[340651964,1729597850080,-503.85656182,0.00016438,2]
[340651965,1729597850090,-502.66523683,0.00016438,2]
[340651966,1729597850100,-501.67050309,0.00016438,2]
[340651967,1729597850110,-746.79,0.00016438,2]
[340651968,1729597850120,-860.77,0.00016438,2]
[340651969,1729597850129,-481.5290695,0.00016438,2]
[340651970,1729597850140,-515.3719895,0.00016438,2]
[340651971,1729597850150,-506.19698946,0.00016438,2]
[340651972,1729597850160,-731.88,0.00016438,2]
[340651973,1729597850170,-504.25006719,0.00016438,2]
[340651974,1729597850179,-500.0,0.00016438,2]
[340651975,1729597850189,-500.0,0.00016438,2]
[340651976,1729597850199,-729.06,0.00016438,2]
[340651977,1729597850209,-520.51282654,0.00016438,2]
[340651978,1729597850218,-273.69,0.00016438,2]
[340651979,1729597850227,-500.41531311,0.00016438,2]
[340651980,1729597850237,-500.0,0.00016438,2]
[340651981,1729597850248,-506.14937678,0.00016438,2]
[340651982,1729597850258,-630.88,0.00016438,2]
[340651983,1729597850267,-503.77065905,0.00016438,2]
[340651984,1729597850277,-500.0,0.00016438,2]
[340651985,1729597850288,-625.4,0.00016438,2]
[340651986,1729597850297,-503.22261218,0.00016438,2]
[340651987,1729597850307,-506.47432708,0.00016438,2]
[340651988,1729597850316,-504.64846814,0.00016438,2]
[340651989,1729597850326,-503.94,0.00016438,2]
[340651990,1729597850336,-500.0,0.00016438,2]
[340651991,1729597850345,-502.01939176,0.00016438,2]
[340651992,1729597850355,-557.17090625,0.00016438,2]
[340651993,1729597850364,-500.0,0.00016438,2]
[340651994,1729597850373,-687.31,0.00016438,2]
[340651995,1729597850383,-502.5106895,0.00016438,2]
[340651996,1729597850392,-505.07493985,0.00016438,2]
[340651997,1729597850401,-504.30194121,0.00016438,2]
[340651998,1729597850411,-500.0,0.00016438,2]
[340651999,1729597850420,-502.55864295,0.00016438,2]
[340652000,1729597850429,-503.05187125,0.00016438,2]
[340652001,1729597850438,-508.72194092,0.00016438,2]
[340652002,1729597850448,-500.0,0.00016438,2]
[340652003,1729597850457,-506.68287538,0.00016438,2]
[340652004,1729597850468,-502.19681629,0.00016438,2]
[340652005,1729597850478,-549.39316504,0.00016438,2]
[340652006,1729597850487,-502.27293461,0.00016438,2]
[340652007,1729597850496,-560.77,0.00016438,2]
[340652008,1729597850506,-637.4,0.00016438,2]
[340652009,1729597850515,-505.55601736,0.00016438,2]
[340652010,1729597850525,-502.46964083,0.00016438,2]
[340652011,1729597850534,-503.16052103,0.00016438,2]
[340652012,1729597850544,-500.0,0.00016438,2]
[340652013,1729597850553,-500.0,0.00016438,2]
[340652014,1729597850563,-978.37,0.00016438,2]
[340652015,1729597850573,-500.69427016,0.00016438,2]
[340652016,1729597850582,-502.72404685,0.00016438,2]
[340652017,1729597850591,-501.99781457,0.00016438,2]
[340652018,1729597850601,-500.99330938,0.00016438,2]
[340652019,1729597850610,-726.12,0.00016438,2]
[340652020,1729597850619,-509.70144239,0.00016438,2]
[340652021,1729597850628,-502.35815486,0.00016438,2]
[340652022,1729597850638,-502.54239348,0.00016438,2]
[340652023,1729597850647,-503.59460274,0.00016438,2]
[340652024,1729597850657,-769.77,0.00016438,2]
[340652025,1729597850668,-503.87533417,0.00016438,2]
[340652026,1729597850679,-506.17,0.00016438,2]
[340652027,1729597850689,-504.75308943,0.00016438,2]
[340652028,1729597850698,-504.01486032,0.00016438,2]
[340652029,1729597850709,-503.94444786,0.00016438,2]
[340652030,1729597850718,-508.33741257,0.00016438,2]
[340652031,1729597850728,-503.93477034,0.00016438,2]
[340652032,1729597850737,-503.16658025,0.00016438,2]
[340652033,1729597850747,-503.90466142,0.00016438,2]
[340652034,1729597850756,-501.99334934,0.00016438,2]
[340652035,1729597850766,-500.0,0.00016438,2]
[340652036,1729597850777,-505.94596203,0.00016438,2]
[340652037,1729597850786,-500.0,0.00016438,2]
[340652038,1729597850795,-502.77184011,0.00016438,2]
[340652039,1729597850805,-501.29783744,0.00016438,2]
[340652040,1729597850814,-500.0,0.00016438,2]
[340652041,1729597850824,-500.0,0.00016438,2]
[340652042,1729597850833,-500.0,0.00016438,2]
[340652043,1729597850843,-501.53309233,0.00016438,2]
[340652044,1729597850852,-500.0,0.00016438,2]
[340652045,1729597850861,-295.02754698,0.00016438,2]
[340652046,1729597850871,-500.0,0.00016438,2]
[340652047,1729597850880,-534.66160391,0.00016438,2]
[340652048,1729597850890,-503.3496798,0.00016438,2]
[340652049,1729597850901,-504.67385367,0.00016438,2]
[340652050,1729597850910,-506.04655923,0.00016438,2]
[340652051,1729597850920,-500.90776174,0.00016438,2]
[340652052,1729597850929,-505.61774591,0.00016438,2]
[340652053,1729597850943,-501.58456941,0.00016438,2]
[340652054,1729597850952,-500.0,0.00016438,2]
[340652055,1729597850961,-799.85,0.00016438,2]
[340652056,1729597850971,-501.49365777,0.00016438,2]
[340652057,1729597850980,-505.84420353,0.00016438,2]
[340652058,1729597850990,-506.17151954,0.00016438,2]
[340652059,1729597851000,-500.60924444,0.00016438,2]
[340652060,1729597851011,-500.0,0.00016438,2]
[340652061,1729597851021,-504.85882592,0.00016438,2]
[340652062,1729597851031,-509.2253944,0.00016438,2]
[340652063,1729597851041,-549.13629196,0.00016438,2]
[340652064,1729597851050,-503.22783925,0.00016438,2]
[340652065,1729597851061,-7910.97,0.00016438,2]
[340652066,1729597851071,-500.2214046,0.00016438,2]
[340652067,1729597851080,-504.28665172,0.00016438,2]
[340652068,1729597851091,-505.95666244,0.00016438,2]
[340652069,1729597851100,-300.0,0.00016438,2]
[340652070,1729597851111,-500.0,0.00016438,2]
[340652071,1729597851120,-505.31312497,0.00016438,2]
[340652072,1729597851130,-2948.41,0.00016438,2]
[340652073,1729597851139,-501.84177497,0.00016438,2]
[340652074,1729597851148,-500.0,0.00016438,2]
[340652075,1729597851158,-500.0,0.00016438,2]
[340652076,1729597851168,-503.67435112,0.00016438,2]
[340652077,1729597851178,-501.18052856,0.00016438,2]
[340652078,1729597851187,-558.03001527,0.00016438,2]
[340652079,1729597851197,-501.48934486,0.00016438,2]
[340652080,1729597851206,-500.0,0.00016438,2]
[340652081,1729597851215,-500.0,0.00016438,2]
[340652082,1729597851229,-501.8923539,0.00016438,2]
[340652083,1729597851238,-521.13518882,0.00016438,2]
[340652084,1729597851247,-1070.37,0.00016438,2]
[340652085,1729597851258,-500.0,0.00016438,2]
[340652086,1729597851267,-1671.56,0.00016438,2]
[340652087,1729597851277,-502.84631106,0.00016438,2]
[340652088,1729597851286,-500.0,0.00016438,2]
[340652089,1729597851296,-502.43008517,0.00016438,2]
[340652090,1729597851305,-756.57,0.00016438,2]
[340652091,1729597851316,-500.0,0.00016438,2]
[340652092,1729597851325,-502.50015575,0.00016438,2]
[340652093,1729597851335,-501.43438576,0.00016438,2]
[340652094,1729597851344,-506.26945432,0.00016438,2]
[340652095,1729597851353,-506.9999417,0.00016438,2]
[340652096,1729597851362,-500.84898464,0.00016438,2]
[340652097,1729597851372,-500.60950442,0.00016438,2]
[340652098,1729597851382,-500.3830583,0.00016438,2]
[340652099,1729597851391,-502.77529344,0.00016438,2]
[340652100,1729597851400,-503.09924581,0.00016438,2]
[340652101,1729597851410,-500.0,0.00016438,2]
[340652102,1729597851420,-550.83,0.00016438,2]
[340652103,1729597851429,-907.46,0.00016438,2]
[340652104,1729597851439,-500.7223278,0.00016438,2]
[340652105,1729597851448,-500.0,0.00016438,2]
[340652106,1729597851457,-502.88356263,0.00016438,2]
[340652107,1729597851469,-500.0,0.00016438,2]
[340652108,1729597851479,-504.71378899,0.00016438,2]
[340652109,1729597851488,-1522.33,0.00016438,2]
[340652110,1729597851497,-507.04721152,0.00016438,2]
[340652111,1729597851507,-501.32272019,0.00016438,2]
[340652112,1729597851517,-500.82526108,0.00016438,2]
[340652113,1729597851527,-502.03951021,0.00016438,2]
[340652114,1729597851536,-500.0,0.00016438,2]
[340652115,1729597851546,-500.0,0.00016438,2]
[340652116,1729597851556,-200.0,0.00016438,2]
[340652117,1729597851565,-501.74446292,0.00016438,2]
[340652118,1729597851575,-501.21956991,0.00016438,2]
[340652119,1729597851584,-557.09,0.00016438,2]
[340652120,1729597851593,-6592.81,0.00016438,2]
[340652121,1729597851603,-502.75133201,0.00016438,2]
[340652122,1729597851612,-590.83236174,0.00016438,2]
[340652123,1729597851622,-553.07,0.00016438,2]
[340652124,1729597851631,-503.17805754,0.00016438,2]
[340652125,1729597851640,-501.87150199,0.00016438,2]
[340652126,1729597851650,-629.24715509,0.00016438,2]
[340652127,1729597851660,-501.1894699,0.00016438,2]
[340652128,1729597851669,-505.63946588,0.00016438,2]
[340652129,1729597851679,-500.0,0.00016438,2]
[340652130,1729597851688,-275.84192175,0.00016438,2]
[340652131,1729597851698,-501.85151372,0.00016438,2]
[340652132,1729597851707,-501.60615275,0.00016438,2]
[340652133,1729597851716,-501.22038861,0.00016438,2]
[340652134,1729597851725,-627.94158855,0.00016438,2]
[340652135,1729597851736,-500.0,0.00016438,2]
[340652136,1729597851745,-367.37609615,0.00016438,2]
[340652137,1729597851754,-500.0,0.00016438,2]
[340652138,1729597851764,-1276.05,0.00016438,2]
[340652139,1729597851773,-500.0,0.00016438,2]
[340652140,1729597851783,-500.87068652,0.00016438,2]
[340652141,1729597851792,-500.92456934,0.00016438,2]
[340652142,1729597851801,-2295.03,0.00016438,2]
[340652143,1729597851811,-503.5971692,0.00016438,2]
[340652144,1729597851821,-500.0,0.00016438,2]
[340652145,1729597851830,-501.57048497,0.00016438,2]
[340652146,1729597851840,-501.34132514,0.00016438,2]
[340652147,1729597851849,-500.0,0.00016438,2]
[340652148,1729597851859,-498.23623147,0.00016438,2]
[340652149,1729597851869,-574.54,0.00016438,2]
[340652150,1729597851878,-570.94094007,0.00016438,2]
[340652151,1729597851888,-500.79751617,0.00016438,2]
[340652152,1729597851897,-752.57,0.00016438,2]
[340652153,1729597851907,-503.24457297,0.00016438,2]
[340652154,1729597851916,-500.70017592,0.00016438,2]
[340652155,1729597851926,-500.0,0.00016438,2]
[340652156,1729597851939,-510.27754516,0.00016438,2]
[340652157,1729597851949,-505.47096621,0.00016438,2]
[340652158,1729597851960,-500.0,0.00016438,2]
[340652159,1729597851969,-778.04,0.00016438,2]
[340652160,1729597851981,-502.67884238,0.00016438,2]
[340652161,1729597851990,-500.37871416,0.00016438,2]
[340652162,1729597851999,-503.76002967,0.00016438,2]
[340652163,1729597852008,-507.9,0.00016438,2]
[340652164,1729597852020,-550.85,0.00016438,2]
[340652165,1729597852031,-505.82811696,0.00016438,2]
[340652166,1729597852040,-503.33917964,0.00016438,2]
[340652167,1729597852050,-502.92022561,0.00016438,2]
[340652168,1729597852059,-501.73175625,0.00016438,2]
[340652169,1729597852069,-501.43039377,0.00016438,2]
[340652170,1729597852079,-500.0,0.00016438,2]
[340652171,1729597852088,-501.39590146,0.00016438,2]
[340652172,1729597852097,-485.15909589,0.00016438,2]
[340652173,1729597852106,-500.0,0.00016438,2]
[340652174,1729597852115,-504.52737054,0.00016438,2]
[340652175,1729597852124,-500.0,0.00016438,2]
[340652176,1729597852134,-502.90491161,0.00016438,2]
[340652177,1729597852143,-503.65110047,0.00016438,2]
[340652178,1729597852153,-500.0,0.00016438,2]
[340652179,1729597852163,-500.0,0.00016438,2]
[340652180,1729597852172,-1482.27,0.00016438,2]
[340652181,1729597852182,-620.34,0.00016438,2]
[340652182,1729597852191,-500.0,0.00016438,2]
[340652183,1729597852200,-564.77,0.00016438,2]
[340652184,1729597852354,-505.32913824,0.00016438,2]
[340652185,1729597852364,-500.0,0.00016438,2]
[340652186,1729597852374,-629.69030849,0.00016438,2]
[340652187,1729597852383,-503.62615725,0.00016438,2]
[340652188,1729597852393,-500.0,0.00016438,2]
[340652189,1729597852403,-501.30178866,0.00016438,2]
[340652190,1729597852412,-500.0,0.00016438,2]
[340652191,1729597852421,-755.02,0.00016438,2]
[340652192,1729597852431,-503.36220102,0.00016438,2]
[340652193,1729597852441,-500.0,0.00016438,2]
[340652194,1729597852450,-503.36560828,0.00016438,2]
[340652195,1729597852460,-458.35080648,0.00016438,2]
[340652196,1729597852470,-862.34,0.00016438,2]
[340652197,1729597852480,-501.58723796,0.00016438,2]
[340652198,1729597852490,-500.0,0.00016438,2]
[340652199,1729597852500,-510.20636701,0.00016438,2]
[340652200,1729597852510,-500.0,0.00016438,2]
[340652201,1729597852519,-511.40981782,0.00016438,2]
[340652202,1729597852530,-501.34086826,0.00016438,2]
[340652203,1729597852542,-503.86596238,0.00016438,2]
[340652204,1729597852553,-505.54562153,0.00016438,2]
[340652205,1729597852562,-500.0,0.00016438,2]
[340652206,1729597852571,-501.34013356,0.00016438,2]
[340652207,1729597852581,-915.67,0.00016438,2]
[340652208,1729597852591,-501.62932441,0.00016438,2]
[340652209,1729597852601,-553.9748194,0.00016438,2]
[340652210,1729597852612,-503.29714887,0.00016438,2]
[340652211,1729597852621,-500.2263986,0.00016438,2]
[340652212,1729597852632,-500.0,0.00016438,2]
[340652213,1729597852642,-321.49393337,0.00016438,2]
[340652214,1729597852652,-502.23966993,0.00016438,2]
[340652215,1729597852662,-745.93,0.00016438,2]
[340652216,1729597852672,-500.0,0.00016438,2]
[340652217,1729597852682,-500.0,0.00016438,2]
[340652218,1729597852694,-500.0,0.00016438,2]
[340652219,1729597852704,-500.0,0.00016438,2]
[340652220,1729597852715,-325.32478276,0.00016438,2]
[340652221,1729597852725,-501.30504335,0.00016438,2]
[340652222,1729597852735,-505.5962481,0.00016438,2]
[340652223,1729597852745,-500.0,0.00016438,2]
[340652224,1729597852754,-532.0721144,0.00016438,2]
[340652225,1729597852764,-501.68527693,0.00016438,2]
[340652226,1729597852773,-501.93439676,0.00016438,2]
[340652227,1729597852785,-501.1720329,0.00016438,2]
[340652228,1729597852795,-610.7,0.00016438,2]
[340652229,1729597852805,-763.2,0.00016438,2]
[340652230,1729597852814,-508.28558742,0.00016438,2]
[340652231,1729597852823,-502.78746435,0.00016438,2]
[340652232,1729597852833,-501.14897498,0.00016438,2]
[340652233,1729597852842,-502.34994125,0.00016438,2]
[340652234,1729597852852,-572.26438773,0.00016438,2]
[340652235,1729597852861,-500.0,0.00016438,2]
[340652236,1729597852870,-501.30009909,0.00016438,2]
[340652237,1729597852880,-524.84,0.00016438,2]
[340652238,1729597852889,-3748.75,0.00016438,2]
[340652239,1729597852898,-571.44842431,0.00016438,2]
[340652240,1729597852908,-500.0,0.00016438,2]
[340652241,1729597852917,-500.0,0.00016438,2]
[340652242,1729597852927,-501.71121901,0.00016438,2]
[340652243,1729597852940,-1089.9,0.00016438,2]
[340652244,1729597852950,-500.0,0.00016438,2]
[340652245,1729597852959,-515.59092024,0.00016438,2]
[340652246,1729597852969,-772.93,0.00016438,2]
[340652247,1729597852979,-772.93,0.00016438,2]
[340652248,1729597852988,-772.93,0.00016438,2]
[340652249,1729597852998,-772.93,0.00016438,2]
[340652250,1729597853007,-535.86308586,0.00016438,2]
[340652251,1729597853016,-772.93,0.00016438,2]
[340652252,1729597853028,-772.93,0.00016438,2]
[340652253,1729597853038,-617.00463797,0.00016438,2]
[340652254,1729597853047,-772.93,0.00016438,2]
[340652255,1729597853056,-772.93,0.00016438,2]
[340652256,1729597853066,-772.93,0.00016438,2]
[340652257,1729597853076,-504.06804107,0.00016438,2]
[340652258,1729597853086,-772.93,0.00016438,2]
[340652259,1729597853095,-772.93,0.00016438,2]
[340652260,1729597853105,-772.93,0.00016438,2]
[340652261,1729597853115,-772.93,0.00016438,2]
[340652262,1729597853124,-507.42255483,0.00016438,2]
[340652263,1729597853134,-772.93,0.00016438,2]
[340652264,1729597853143,-772.93,0.00016438,2]
[340652265,1729597853153,-772.93,0.00016438,2]
[340652266,1729597853163,-772.93,0.00016438,2]
[340652267,1729597853172,-772.93,0.00016438,2]
[340652268,1729597853181,-772.93,0.00016438,2]
[340652269,1729597853191,-500.0,0.00016438,2]
[340652270,1729597853202,-772.93,0.00016438,2]
[340652271,1729597853211,-607.48,0.00016438,2]
[340652272,1729597853222,-772.93,0.00016438,2]
[340652273,1729597853232,-772.93,0.00016438,2]
[340652274,1729597853242,-772.93,0.00016438,2]
[340652275,1729597853252,-773.02190627,0.00016438,2]
[340652276,1729597853263,-500.0,0.00016438,2]
[340652277,1729597853273,-506.0,0.00016438,2]
[340652278,1729597853287,-497.90377683,0.00016438,2]
[340652279,1729597853297,-2035.31,0.00016438,2]
[340652280,1729597853307,-953.67,0.00016438,2]
[340652281,1729597853317,-501.53808151,0.00016438,2]
[340652282,1729597853327,-504.80587162,0.00016438,2]
[340652283,1729597853337,-502.41480909,0.00016438,2]